fUST/lending_fUST_20251125
["ID","MTS","AMOUNT","RATE_DAILY","PERIOD"]
[394867907,1764038767497,-73.98513173,7.935e-05,2]
[394867908,1764038767521,-161.94246619,7.936e-05,2]
[394867909,1764038771067,-235.35880061,7.936e-05,2]
[394867910,1764038773140,-162.26906499,7.936e-05,2]
[394867911,1764038776423,-288.62855109,7.936e-05,2]
[394867912,1764038777480,-3907.28397886,7.857e-05,2]
[394867913,1764038777701,-2185.44204228,7.857e-05,2]
[394867914,1764038777878,-204.68061024,7.936e-05,2]
[394867915,1764038779419,-151.8744075,7.936e-05,2]
[394867916,1764038782079,-209.35266033,7.936e-05,2]
[394867917,1764038784149,-377.7558876,7.936e-05,2]
[394867918,1764038784664,2028.93448887,7.857e-05,2]
[394867919,1764038786362,-360.5417134,7.936e-05,2]
[394867920,1764038789274,-179.28524712,7.936e-05,2]
[394867921,1764038792573,2582.99787785,7.857e-05,2]
[394867922,1764038793923,-296.42325654,7.935e-05,2]
[394867923,1764038797335,-190.67228765,7.935e-05,2]
[394867924,1764038800522,300.0,7.856e-05,2]
[394867925,1764038800550,-12.90445581,7.935e-05,2]
[394867926,1764038800571,-218.61449199,7.935e-05,2]
[394867927,1764038802043,-15.8648593,7.935e-05,2]
[394867928,1764038802066,-161.37315527,7.935e-05,2]
[394867929,1764038804907,-192.60023501,7.935e-05,2]
[394867930,1764038807474,-146.02660972,7.935e-05,2]
[394867931,1764038807498,-14.14092139,7.935e-05,2]
[394867932,1764038808972,-244.74934431,7.935e-05,2]
[394867933,1764038812558,-241.1097343,7.935e-05,2]
[394867934,1764038812579,-98.72273459,7.935e-05,2]
[394867936,1764038815262,-177.08547157,7.935e-05,2]
[394867937,1764038817835,-199.08740762,7.935e-05,2]
[394867938,1764038819369,-25.10438622,7.935e-05,2]
[394867939,1764038819391,-282.29537877,7.935e-05,2]
[394867940,1764038821614,156.66,1e-05,2]
[394867941,1764038822010,156.66,1.1e-05,2]
[394867942,1764038822105,-217.70462123,7.935e-05,2]
[394867943,1764038822129,-70.74460044,7.935e-05,2]
[394867944,1764038822251,156.66,1.1e-05,2]
[394867945,1764038822598,156.66,1.2e-05,2]
[394867946,1764038822896,156.66,1.2e-05,2]
[394867947,1764038823278,156.66,1.3e-05,2]
[394867948,1764038823581,156.66,1.3e-05,2]
[394867949,1764038823851,156.66,1.4e-05,2]
[394867950,1764038824292,156.66,1.4e-05,2]
[394867951,1764038824607,-300.0,7.934e-05,2]
[394867952,1764038824629,-26.38611268,7.935e-05,2]
[394867953,1764038824660,156.66,1.5e-05,2]
[394867954,1764038824941,156.66,1.6e-05,2]
[394867955,1764038825217,156.66,1.6e-05,2]
[394867956,1764038825528,156.66,1.7e-05,2]
[394867957,1764038825944,156.66,1.7e-05,2]
[394867958,1764038826179,156.66,1.8e-05,2]
[394867959,1764038826500,156.66,1.8e-05,2]
[394867960,1764038826791,156.66,1.9e-05,2]
[394867961,1764038827074,156.66,2e-05,2]
[394867962,1764038827375,156.66,2e-05,2]
[394867963,1764038827711,156.66,2.1e-05,2]
[394867964,1764038828315,156.66,2.1e-05,2]
[394867965,1764038828625,156.66,2.2e-05,2]
[394867966,1764038828926,156.66,2.2e-05,2]
[394867967,1764038829228,156.66,2.3e-05,2]
[394867968,1764038829506,156.66,2.3e-05,2]
[394867969,1764038829805,156.66,2.4e-05,2]
[394867970,1764038830094,156.66,2.5e-05,2]
[394867971,1764038830380,156.66,2.5e-05,2]
[394867972,1764038830660,156.66,2.6e-05,2]
[394867973,1764038830988,-154.46532985,7.935e-05,2]
[394867974,1764038831017,156.66,2.6e-05,2]
[394867975,1764038831320,156.66,2.7e-05,2]
[394867976,1764038831605,156.66,2.7e-05,2]
[394867977,1764038831922,156.66,2.8e-05,2]
[394867978,1764038832353,156.66,2.9e-05,2]
[394867979,1764038832490,-248.40395703,7.935e-05,2]
[394867980,1764038832515,-242.12507003,7.935e-05,2]
[394867981,1764038832679,156.66,2.9e-05,2]
[394867982,1764038832977,156.66,3e-05,2]
[394867983,1764038833272,156.66,3e-05,2]
[394867984,1764038833628,156.66,3.1e-05,2]
[394867985,1764038835166,156.66,3.1e-05,2]
[394867986,1764038835477,156.66,3.2e-05,2]
[394867987,1764038835951,156.66,3.2e-05,2]
[394867988,1764038835977,-211.99416352,7.935e-05,2]
[394867989,1764038836098,156.66,3.3e-05,2]
[394867990,1764038836418,156.66,3.4e-05,2]
[394867991,1764038836777,156.66,3.4e-05,2]
[394867992,1764038837115,156.66,3.5e-05,2]
[394867993,1764038837340,1259.82969126,7.856e-05,2]
[394867994,1764038837404,156.66,3.5e-05,2]
[394867995,1764038837690,156.66,3.6e-05,2]
[394867996,1764038837973,156.66,3.6e-05,2]
[394867997,1764038838337,156.66,3.7e-05,2]
[394867998,1764038838454,-151.47861581,7.935e-05,2]
[394867999,1764038838475,-22.93694166,7.935e-05,2]
[394868000,1764038839893,-307.42852468,7.935e-05,2]
[394868001,1764038841998,-169.63453366,7.935e-05,2]
[394868002,1764038842021,-196.88817137,7.935e-05,2]
[394868004,1764038848241,-303.11182863,7.935e-05,2]
[394868005,1764038848262,-25.13560322,7.935e-05,2]
[394868006,1764038853090,-151.05144922,7.935e-05,2]
[394868007,1764038856417,-286.55926861,7.935e-05,2]
[394868008,1764038858464,-37.25367895,7.935e-05,2]
[394868009,1764038858487,-358.40042614,7.935e-05,2]
[394868010,1764038862109,-141.59957386,7.935e-05,2]
[394868011,1764038862130,-120.34728135,7.935e-05,2]
[394868012,1764038864932,-266.57505721,7.935e-05,2]
[394868013,1764038868844,-224.6124134,7.935e-05,2]
[394868014,1764038871957,-213.44073139,7.935e-05,2]
[394868015,1764038875216,-229.07687745,7.935e-05,2]
[394868016,1764038877303,-540.92166075,7.935e-05,2]
[394868017,1764038880533,-216.56073041,7.935e-05,2]
[394868018,1764038880557,-22.58898663,7.935e-05,2]
[394868019,1764038880579,-104.54410309,7.936e-05,2]
[394868020,1764038885068,-153.40096782,7.935e-05,2]
[394868021,1764038886761,-146.59903218,7.935e-05,2]
[394868022,1764038886783,-14.98028591,7.935e-05,2]
[394868044,1764038946180,169.683033,3.492e-05,2]
[394868045,1764038946379,169.683033,5.238e-05,2]
[394868046,1764038946579,169.683033,6.984e-05,2]
[394868159,1764039032692,-300.0,7.933e-05,2]
[394868161,1764039032702,-1200.0,7.933e-05,2]
[394868163,1764039032711,-403.79152651,7.934e-05,2]
[394868165,1764039032720,-233.9553166,7.934e-05,2]
[394868167,1764039032730,-500.0,7.934e-05,2]
[394868169,1764039032740,-500.0,7.934e-05,2]
[394868170,1764039032749,-500.0,7.934e-05,2]
[394868172,1764039032758,-500.0,7.934e-05,2]
[394868174,1764039032768,-500.0,7.934e-05,2]
[394868176,1764039032777,-500.0,7.934e-05,2]
[394868179,1764039032787,-500.0,7.934e-05,2]
[394868180,1764039032797,-500.0,7.934e-05,2]
[394868182,1764039032807,-500.0,7.934e-05,2]
[394868184,1764039032816,-500.0,7.934e-05,2]
[394868187,1764039032826,-500.0,7.934e-05,2]
[394868188,1764039032835,-500.0,7.934e-05,2]
[394868191,1764039032845,-500.0,7.934e-05,2]
[394868193,1764039032855,-500.0,7.934e-05,2]
[394868194,1764039032864,-500.0,7.934e-05,2]
[394868197,1764039032875,-500.0,7.934e-05,2]
[394868199,1764039032884,-500.0,7.934e-05,2]
[394868201,1764039032894,-500.0,7.934e-05,2]
[394868203,1764039032903,-564.43456266,7.934e-05,2]
[394868205,1764039032913,-500.0,7.934e-05,2]
[394868207,1764039032922,-500.0,7.934e-05,2]
[394868209,1764039032932,-363.1293135,7.934e-05,2]
[394868211,1764039032942,-500.0,7.934e-05,2]
[394868213,1764039032951,-500.0,7.934e-05,2]
[394868215,1764039032960,-500.0,7.934e-05,2]
[394868217,1764039032970,-500.0,7.934e-05,2]
[394868219,1764039032979,-500.0,7.934e-05,2]
[394868221,1764039032988,-500.0,7.934e-05,2]
[394868223,1764039032997,-500.0,7.934e-05,2]
[394868225,1764039033007,-500.0,7.934e-05,2]
[394868227,1764039033017,-500.0,7.934e-05,2]
[394868229,1764039033027,-500.0,7.934e-05,2]
[394868231,1764039033036,-500.0,7.934e-05,2]
[394868233,1764039033045,-500.0,7.934e-05,2]
[394868235,1764039033055,-500.0,7.934e-05,2]
[394868237,1764039033064,-500.0,7.934e-05,2]
[394868239,1764039033075,-500.0,7.934e-05,2]
[394868241,1764039033084,-500.0,7.934e-05,2]
[394868243,1764039033093,-500.0,7.934e-05,2]
[394868245,1764039033104,-500.0,7.934e-05,2]
[394868247,1764039033115,-500.0,7.934e-05,2]
[394868249,1764039033124,-500.0,7.934e-05,2]
[394868251,1764039033133,-288.58014834,7.934e-05,2]
[394868253,1764039033143,-634.78204898,7.934e-05,2]
[394868256,1764039033152,-634.78204898,7.934e-05,2]
[394868258,1764039033162,-634.78204898,7.934e-05,2]
[394868259,1764039033171,-634.78204898,7.934e-05,2]
[394868261,1764039033180,-634.78204898,7.934e-05,2]
[394868263,1764039033189,-634.78204898,7.934e-05,2]
[394868266,1764039033199,-634.78204898,7.934e-05,2]
[394868268,1764039033208,-634.78204898,7.934e-05,2]
[394868269,1764039033217,-634.78204898,7.934e-05,2]
[394868272,1764039033227,-634.78204898,7.934e-05,2]
[394868274,1764039033238,-634.78204898,7.934e-05,2]
[394868276,1764039033247,-634.78204898,7.934e-05,2]
[394868278,1764039033255,-634.78204898,7.934e-05,2]
[394868280,1764039033265,-634.78204898,7.934e-05,2]
[394868282,1764039033275,-634.78204898,7.934e-05,2]
[394868284,1764039033283,-634.78204898,7.934e-05,2]
[394868286,1764039033292,-634.78204898,7.934e-05,2]
[394868288,1764039033301,-634.78204898,7.934e-05,2]
[394868290,1764039033312,-634.78204898,7.934e-05,2]
[394868292,1764039033323,-634.78204898,7.934e-05,2]
[394868294,1764039033333,-634.78204898,7.934e-05,2]
[394868296,1764039033341,-634.78204898,7.934e-05,2]
[394868298,1764039033351,-634.78204898,7.934e-05,2]
[394868300,1764039033361,-634.78204898,7.934e-05,2]
[394868302,1764039033370,-634.78204898,7.934e-05,2]
[394868304,1764039033379,-634.78204898,7.934e-05,2]
[394868306,1764039033389,-500.0,7.934e-05,2]
[394868307,1764039033399,-634.78204898,7.934e-05,2]
[394868309,1764039033408,-634.78204898,7.934e-05,2]
[394868311,1764039033418,-500.0,7.934e-05,2]
[394868313,1764039033427,-634.78204898,7.934e-05,2]
[394868315,1764039033436,-500.0,7.934e-05,2]
[394868316,1764039033446,-634.78204898,7.934e-05,2]
[394868318,1764039033455,-500.0,7.934e-05,2]
[394868320,1764039033464,-634.78204898,7.934e-05,2]
[394868322,1764039033474,-634.78204898,7.934e-05,2]
[394868324,1764039033484,-651.45881261,7.934e-05,2]
[394868325,1764039033493,-634.78204898,7.934e-05,2]
[394868327,1764039033502,-634.78204898,7.934e-05,2]
[394868328,1764039033511,-634.78204898,7.934e-05,2]
[394868329,1764039033521,-634.78204898,7.934e-05,2]
[394868330,1764039033530,-634.78204898,7.934e-05,2]
[394868331,1764039033540,-634.78204898,7.934e-05,2]
[394868332,1764039033549,-634.78204898,7.934e-05,2]
[394868333,1764039033558,-634.78204898,7.934e-05,2]
[394868334,1764039033568,-634.78204898,7.934e-05,2]
[394868335,1764039033577,-634.78204898,7.934e-05,2]
[394868336,1764039033587,-634.78204898,7.934e-05,2]
[394868337,1764039033596,-634.78204898,7.934e-05,2]
[394868338,1764039033606,-634.78204898,7.934e-05,2]
[394868339,1764039033615,-634.78204898,7.934e-05,2]
[394868340,1764039033624,-634.78204898,7.934e-05,2]
[394868341,1764039033633,-634.78204898,7.934e-05,2]
[394868342,1764039033644,-634.78204898,7.934e-05,2]
[394868343,1764039033654,-634.78204898,7.934e-05,2]
[394868344,1764039033662,-634.78204898,7.934e-05,2]
[394868345,1764039033672,-640.8275923,7.934e-05,2]
[394868346,1764039033682,-640.8275923,7.934e-05,2]
[394868347,1764039033691,-640.8275923,7.934e-05,2]
[394868348,1764039033701,-640.8275923,7.934e-05,2]
[394868349,1764039033711,-640.8275923,7.934e-05,2]
[394868350,1764039033720,-640.8275923,7.934e-05,2]
[394868351,1764039033731,-640.8275923,7.934e-05,2]
[394868352,1764039033741,-640.8275923,7.934e-05,2]
[394868353,1764039033750,-171.58991725,7.934e-05,2]
[394868354,1764039033764,-469.23767505,7.934e-05,2]
[394868355,1764039033774,-55.26672474,7.934e-05,2]
[394868356,1764039033792,-585.56086756,7.934e-05,2]
[394868357,1764039033802,-537.46555866,7.934e-05,2]
[394868358,1764039033813,-103.36203364,7.934e-05,2]
[394868359,1764039033823,-640.8275923,7.934e-05,2]
[394868360,1764039033832,-640.8275923,7.934e-05,2]
[394868361,1764039033842,-640.8275923,7.934e-05,2]
[394868362,1764039033852,-640.8275923,7.934e-05,2]
[394868363,1764039033861,-640.8275923,7.934e-05,2]
[394868364,1764039033871,-640.8275923,7.934e-05,2]
[394868365,1764039033880,-640.8275923,7.934e-05,2]
[394868366,1764039033889,-513.88401978,7.935e-05,2]
[394868367,1764039033898,-40656.25628414,7.936e-05,2]
[394868382,1764039037967,-514.1355459,7.934e-05,2]
[394868383,1764039037978,-500.0,7.934e-05,2]
[394868384,1764039037989,-500.0,7.934e-05,2]
[394868385,1764039037999,-500.0,7.934e-05,2]
[394868386,1764039038008,-485.8644541,7.934e-05,2]
[394868387,1764039038021,-14.1355459,7.934e-05,2]
[394868388,1764039038032,-500.0,7.934e-05,2]
[394868389,1764039038042,-500.0,7.934e-05,2]
[394868390,1764039038052,-500.0,7.934e-05,2]
[394868391,1764039038062,-500.0,7.934e-05,2]
[394868392,1764039038072,-565.00724996,7.934e-05,2]
[394868393,1764039038081,-500.0,7.934e-05,2]
[394868394,1764039038091,-500.0,7.934e-05,2]
[394868395,1764039038101,-500.0,7.934e-05,2]
[394868396,1764039038110,-500.0,7.934e-05,2]
[394868397,1764039038120,-500.0,7.934e-05,2]
[394868398,1764039038129,-500.0,7.934e-05,2]
[394868399,1764039038139,-500.0,7.934e-05,2]
[394868400,1764039038148,-24815.62173312,7.936e-05,2]
[394868401,1764039038160,-3390.92,7.936e-05,2]
[394868402,1764039038172,-3434.98,7.936e-05,2]
[394868412,1764039041195,-3e-08,7.936e-05,2]
[394868661,1764039046790,-623.01278997,7.936e-05,2]
[394868662,1764039046799,-142.701773,7.936e-05,2]
[394868663,1764039077309,291.091158,7.856e-05,2]
[394868664,1764039085056,300.0,7.856e-05,2]
[394868665,1764039102590,223.759,7.778e-05,2]
[394868666,1764039107891,282.182316,7.856e-05,2]
[394868667,1764039155222,155.914841,0.00014,10]
[394868672,1764039538229,160.0,0.00011,3]
[394868673,1764039544730,160.0,0.00011,3]
[394868674,1764039556531,160.0,0.00011,3]
[394868675,1764039622673,160.4935022,6.99e-05,2]
[394868677,1764039637036,154.0,0.00011,3]
[394868678,1764039638592,-500.68036516,7.931e-05,2]
[394868679,1764039650625,328.96968259,7.852e-05,2]
[394868681,1764039668515,-300.0,7.93e-05,2]
[394868682,1764039668538,-6.53933909,7.931e-05,2]
[394868683,1764039672860,-295.18610436,7.931e-05,2]
[394868684,1764039672928,306.53933909,7.852e-05,2]
[394868685,1764039689437,160.5,0.00011,3]
[394868686,1764039695401,295.18610436,7.852e-05,2]
[394868687,1764039702592,223.76,7.778e-05,2]
[394868688,1764039710606,300.0,7.852e-05,2]
[394868689,1764039733001,300.0,7.851e-05,2]
[394868690,1764039753846,155.914841,0.00014,10]
[394868691,1764039755309,300.0,7.851e-05,2]
[394868692,1764039762526,6688.02889776,6.934e-05,2]
[394868693,1764039762548,5538.75224304,6.934e-05,2]
[394868694,1764039763066,300.0,7.851e-05,2]
[394868695,1764039777798,9700.01,7.835e-05,2]
[394868696,1764039777821,10000.01,7.835e-05,2]
[394868697,1764039777844,10000.01,7.835e-05,2]
[394868698,1764039777867,10000.01,7.835e-05,2]
[394868699,1764039777891,10000.01,7.835e-05,2]
[394868700,1764039777915,10000.01,7.835e-05,2]
[394868701,1764039777939,10000.01,7.835e-05,2]
[394868702,1764039777963,10000.01,7.835e-05,2]
[394868703,1764039777985,10000.01,7.835e-05,2]
[394868704,1764039778008,10000.01,7.835e-05,2]
[394868705,1764039788585,-304.39457765,7.757e-05,2]
[394868706,1764039790285,-191.6825148,7.757e-05,2]
[394868707,1764039792078,-205.18627769,7.757e-05,2]
[394868708,1764039794042,922.493131,7.679e-05,2]
[394868709,1764039794682,-167.0,7.757e-05,2]
[394868710,1764039798011,-285.58313935,7.757e-05,2]
[394868711,1764039870175,-73.04119916,7.757e-05,2]
[394868712,1764039875486,300.0,7.756e-05,2]
[394868713,1764039883404,300.0,7.756e-05,2]
[394868714,1764039886337,-300.0,7.834e-05,2]
[394868715,1764039886362,-23.17818243,7.835e-05,2]
[394868716,1764039890876,-173.42152211,7.835e-05,2]
[394868717,1764039894633,-288.0,7.835e-05,2]
[394868718,1764039896791,-169.69070441,7.835e-05,2]
[394868719,1764039898782,2298.27590529,7.757e-05,2]
[394868720,1764039899005,-159.17983005,7.835e-05,2]
[394868721,1764039902220,-384.21283943,7.835e-05,2]
[394868722,1764039903913,-285.59235155,7.834e-05,2]
[394868723,1764039906761,-14.40764845,7.834e-05,2]
[394868724,1764039906782,-171.15173759,7.834e-05,2]
[394868725,1764039910693,-210.33789322,7.834e-05,2]
[394868726,1764039913608,-175.36913142,7.834e-05,2]
[394868727,1764039915183,-362.57194709,7.834e-05,2]
[394868728,1764039918154,-203.4970208,7.834e-05,2]
[394868729,1764039920769,-77.07226988,7.834e-05,2]
[394868730,1764039920790,-104.15445459,7.834e-05,2]
[394868731,1764039920986,580.56929068,7.756e-05,2]
[394868732,1764039923021,-195.84554541,7.834e-05,2]
[394868733,1764039923045,-165.13651118,7.835e-05,2]
[394868734,1764039926946,-209.92463222,7.835e-05,2]
[394868735,1764039930979,-197.74581279,7.835e-05,2]
[394868736,1764039932570,-265.69102181,7.835e-05,2]
[394868737,1764039935304,-232.50700278,7.835e-05,2]
[394868738,1764039937235,-225.26886514,7.835e-05,2]
[394868739,1764039939443,-300.0,7.835e-05,2]
[394868740,1764039941063,-300.0,7.835e-05,2]
[394868741,1764039942545,-189.04362858,7.835e-05,2]
[394868742,1764039943073,2609.01067538,7.757e-05,2]
[394868743,1764039945284,-423.3186485,7.835e-05,2]
[394868744,1764039948979,-215.34911615,7.835e-05,2]
[394868745,1764039951720,-300.0,7.835e-05,2]
[394868746,1764039953328,-170.74272771,7.835e-05,2]
[394868747,1764039955266,-220.13191091,7.835e-05,2]
[394868748,1764039956958,-326.88770865,7.835e-05,2]
[394868749,1764039958563,-282.03627464,7.835e-05,2]
[394868750,1764039960280,-275.98327706,7.835e-05,2]
[394868751,1764039962548,-599.99999997,7.835e-05,2]
[394868752,1764039965937,-300.0,7.834e-05,2]
[394868753,1764039965962,-135.29940294,7.835e-05,2]
[394868754,1764039967584,-468.29337435,7.835e-05,2]
[394868755,1764039969765,-228.10932429,7.835e-05,2]
[394868756,1764039974223,-169.87012045,7.834e-05,2]
[394868757,1764039976903,-173.2486445,7.834e-05,2]
[394868758,1764039980318,2670.10760908,7.756e-05,2]
[394868759,1764039981934,-156.88123505,7.834e-05,2]
[394868760,1764039981957,-161.90736393,7.834e-05,2]
[394868761,1764039986575,-250.12000624,7.834e-05,2]
[394868762,1764039988246,-207.65526768,7.834e-05,2]
[394868763,1764039990615,-65.00526633,7.834e-05,2]
[394868764,1764039990638,-242.60696843,7.834e-05,2]
[394868765,1764039992616,-216.55569306,7.834e-05,2]
[394868766,1764039992639,-376.55650333,7.834e-05,2]
[394868767,1764039995748,-171.50275356,7.834e-05,2]
[394868768,1764039998465,-136.62864729,7.834e-05,2]
[394868769,1764039998486,-115.18686279,7.834e-05,2]
[394868770,1764040000657,-306.00892903,7.834e-05,2]
[394868771,1764040002828,-163.49035014,7.834e-05,2]
[394868772,1764040003184,4140.32242486,7.756e-05,2]
[394868773,1764040003205,10000.01,7.756e-05,2]
[394868774,1764040003227,9595.23061313,7.756e-05,2]
[394868775,1764040004523,-100.00176222,7.834e-05,2]
[394868776,1764040004545,-216.62547841,7.834e-05,2]
[394868777,1764040008483,-283.21286661,7.833e-05,2]
[394868778,1764040010944,404.77938687,7.755e-05,2]
[394868779,1764040010966,2625.90037109,7.755e-05,2]
[394868780,1764040011204,-189.61737878,7.833e-05,2]
[394868781,1764040013926,-27.16975461,7.833e-05,2]
[394868782,1764040013955,-231.83582144,7.833e-05,2]
[394868783,1764040017510,-208.36766505,7.833e-05,2]
[394868784,1764040023859,-231.14449367,7.832e-05,2]
[394868785,1764040025328,-68.85550633,7.832e-05,2]
[394868786,1764040025351,-88.65099154,7.833e-05,2]
[394868787,1764040026736,300.0,7.754e-05,2]
[394868788,1764040026956,-298.69973245,7.833e-05,2]
[394868789,1764040026978,-43.79376968,7.833e-05,2]
[394868790,1764040031140,-165.8513514,7.833e-05,2]
[394868791,1764040035392,-228.0,7.833e-05,2]
[394868792,1764040037010,-62.35487892,7.833e-05,2]
[394868793,1764040037031,-178.95841262,7.833e-05,2]
[394868794,1764040039683,-203.19679978,7.833e-05,2]
[394868795,1764040041859,-117.8447876,7.833e-05,2]
[394868796,1764040041880,-39.17653924,7.833e-05,2]
[394868797,1764040043454,-183.09579563,7.833e-05,2]
[394868798,1764040045498,-277.72766513,7.833e-05,2]
[394868799,1764040045519,-115.410533,7.833e-05,2]
[394868800,1764040048476,-259.16752215,7.833e-05,2]
[394868801,1764040048497,-269.8114248,7.833e-05,2]
[394868802,1764040049656,7074.10962891,7.755e-05,2]
[394868803,1764040049678,2368.08761649,7.755e-05,2]
[394868804,1764040053493,-230.1885752,7.833e-05,2]
[394868805,1764040053514,-69.8114248,7.833e-05,2]
[394868806,1764040055640,-300.0,7.833e-05,2]
[394868809,1764040057228,-130.1885752,7.833e-05,2]
[394868810,1764040057249,-111.15067038,7.833e-05,2]
[394868811,1764040060330,-167.07545631,7.833e-05,2]
[394868812,1764040062407,-221.77387331,7.833e-05,2]
[394868813,1764040062429,-137.58820013,7.833e-05,2]
[394868814,1764040065100,-297.79686823,7.833e-05,2]
[394868815,1764040080197,657.15894167,7.754e-05,2]
[394868816,1764040206428,233519.0,0.0002,30]
[394868882,1764040232662,-151.12623872,7.831e-05,2]
[394868883,1764040232672,-1370.09584485,7.831e-05,2]
[394868884,1764040232686,-331.43053739,7.831e-05,2]
[394868885,1764040232696,-7920.66537328,7.831e-05,2]
[394868896,1764040238099,-2196.29875058,7.831e-05,2]
[394868898,1764040238153,-2639.94396664,7.831e-05,2]
[394868899,1764040238163,-250.0,7.831e-05,2]
[394868900,1764040238173,-250.0,7.831e-05,2]
[394868901,1764040238183,-250.0,7.831e-05,2]
[394868902,1764040238194,-250.0,7.831e-05,2]
[394868903,1764040238204,-250.0,7.831e-05,2]
[394868904,1764040238214,-250.0,7.831e-05,2]
[394868905,1764040238223,-250.0,7.831e-05,2]
[394868906,1764040238233,-250.0,7.831e-05,2]
[394868907,1764040238243,-259.50110382,7.831e-05,2]
[394868908,1764040238252,-520.77139239,7.831e-05,2]
[394868909,1764040238263,-1200.0,7.831e-05,2]
[394868910,1764040238273,-1200.0,7.832e-05,2]
[394868911,1764040238283,-300.0,7.832e-05,2]
[394868912,1764040238293,-300.0,7.832e-05,2]
[394868913,1764040238303,-300.0,7.832e-05,2]
[394868914,1764040238312,-300.0,7.832e-05,2]
[394868915,1764040238594,-184.5195415,7.832e-05,2]
[394868916,1764040238604,-500.0,7.832e-05,2]
[394868917,1764040238615,-500.0,7.832e-05,2]
[394868918,1764040238624,-500.0,7.832e-05,2]
[394868919,1764040238634,-500.0,7.832e-05,2]
[394868920,1764040238644,-500.0,7.832e-05,2]
[394868921,1764040238653,-562.07994915,7.832e-05,2]
[394868922,1764040238663,-500.0,7.832e-05,2]
[394868923,1764040238672,-335.36568136,7.832e-05,2]
[394868924,1764040238683,-500.0,7.832e-05,2]
[394868925,1764040238694,-500.0,7.832e-05,2]
[394868926,1764040238704,-500.0,7.832e-05,2]
[394868927,1764040238713,-500.0,7.832e-05,2]
[394868928,1764040238723,-500.0,7.832e-05,2]
[394868929,1764040238732,-500.0,7.832e-05,2]
[394868930,1764040238742,-500.0,7.832e-05,2]
[394868931,1764040238751,-500.0,7.832e-05,2]
[394868932,1764040238762,-500.0,7.832e-05,2]
[394868933,1764040238771,-64.61493164,7.833e-05,2]
[394868934,1764040238781,-500.0,7.833e-05,2]
[394868935,1764040238790,-500.0,7.833e-05,2]
[394868936,1764040238800,-500.0,7.833e-05,2]
[394868937,1764040238809,-500.0,7.833e-05,2]
[394868938,1764040238819,-485.09062656,7.833e-05,2]
[394868939,1764040238829,-511.68624865,7.833e-05,2]
[394868940,1764040238839,-500.0,7.833e-05,2]
[394868941,1764040238848,-500.0,7.833e-05,2]
[394868942,1764040238858,-500.0,7.833e-05,2]
[394868943,1764040238868,-500.0,7.833e-05,2]
[394868944,1764040238878,-500.0,7.833e-05,2]
[394868945,1764040238887,-500.0,7.833e-05,2]
[394868946,1764040238899,-500.0,7.833e-05,2]
[394868947,1764040238909,-500.0,7.833e-05,2]
[394868948,1764040238919,-500.0,7.833e-05,2]
[394868949,1764040238928,-496.79918893,7.833e-05,2]
[394868950,1764040238939,-500.0,7.833e-05,2]
[394868951,1764040238949,-500.0,7.833e-05,2]
[394868952,1764040238959,-500.0,7.833e-05,2]
[394868953,1764040238968,-500.0,7.833e-05,2]
[394868954,1764040238978,-500.0,7.833e-05,2]
[394868955,1764040238988,-500.0,7.833e-05,2]
[394868956,1764040238999,-500.0,7.833e-05,2]
[394868957,1764040239009,-500.0,7.833e-05,2]
[394868958,1764040239019,-500.0,7.833e-05,2]
[394868959,1764040239029,-500.0,7.833e-05,2]
[394868960,1764040239039,-500.0,7.833e-05,2]
[394868961,1764040239049,-500.0,7.833e-05,2]
[394868962,1764040239059,-500.0,7.833e-05,2]
[394868963,1764040239069,-500.0,7.833e-05,2]
[394868964,1764040239078,-500.0,7.833e-05,2]
[394868965,1764040239088,-500.0,7.833e-05,2]
[394868966,1764040239098,-500.0,7.833e-05,2]
[394868967,1764040239113,-500.0,7.833e-05,2]
[394868968,1764040239123,-212.13502357,7.833e-05,2]
[394868969,1764040239132,-259.00557605,7.833e-05,2]
[394868970,1764040239142,-462.36498641,7.833e-05,2]
[394868971,1764040239152,-343.68058396,7.833e-05,2]
[394868972,1764040239162,-976.56759291,7.833e-05,2]
[394868973,1764040239173,-453.35025048,7.833e-05,2]
[394868974,1764040239187,-669.98190557,7.833e-05,2]
[394868975,1764040239197,-1123.33215605,7.833e-05,2]
[394868976,1764040239208,-1123.33215605,7.833e-05,2]
[394868977,1764040239219,-895.02170257,7.833e-05,2]
[394868978,1764040239232,-228.31045348,7.833e-05,2]
[394868979,1764040239242,-1123.33215605,7.833e-05,2]